fUST/lending_fUST_20241211
["ID","MTS","AMOUNT","RATE_DAILY","PERIOD"]
[345011101,1733930856253,-153.0,0.0003063,30]
[345011102,1733930856273,-153.0,0.0003063,30]
[345011103,1733930856295,-408.5395103,0.0003063,30]
[345011104,1733930856317,-153.0,0.0003063,30]
[345011105,1733930856338,-153.0,0.0003063,30]
[345011106,1733930856358,-153.0,0.0003063,30]
[345011107,1733930856379,-159.1602842,0.0003063,30]
[345011108,1733930856399,-153.0,0.0003063,30]
[345011109,1733930856421,-153.0,0.0003063,30]
[345011110,1733930856456,-153.0,0.0003063,30]
[345011111,1733930856489,-153.0,0.0003063,30]
[345011112,1733930856513,-153.0,0.0003063,30]
[345011113,1733930856537,-268.9159495,0.0003063,30]
[345011114,1733930856560,-446.8540005,0.0003063,30]
[345011115,1733930856583,-151.0,0.00030633,7]
[345011116,1733930856607,-164.072541,0.00030633,7]
[345011117,1733930856632,-164.072541,0.00030633,7]
[345011118,1733930856656,-164.072541,0.00030633,7]
[345011119,1733930856680,-164.072541,0.00030633,7]
[345011120,1733930856703,-164.072541,0.00030633,7]
[345011121,1733930856731,-164.072541,0.00030633,7]
[345011122,1733930856755,-164.072541,0.00030633,7]
[345011123,1733930856785,-164.072541,0.00030633,7]
[345011124,1733930856811,-164.072541,0.00030633,7]
[345011125,1733930856835,-164.072541,0.00030633,7]
[345011126,1733930856860,-164.072541,0.00030633,7]
[345011127,1733930856883,-164.072541,0.00030633,7]
[345011128,1733930856908,-164.072541,0.00030633,7]
[345011129,1733930856931,-164.072541,0.00030633,7]
[345011130,1733930856956,-164.072541,0.00030633,7]
[345011131,1733930856989,-164.072541,0.00030633,7]
[345011132,1733930857014,-164.072541,0.00030633,7]
[345011133,1733930857038,-164.072541,0.00030633,7]
[345011134,1733930857062,-164.072541,0.00030633,7]
[345011135,1733930857085,-164.072537,0.00030633,7]
[345011136,1733930857108,-297.34165773,0.00030636,2]
[345011137,1733930857134,-70484.02505029,0.00030636,2]
[345011138,1733930857157,-405.04993113,0.00030636,2]
[345011139,1733930857177,-1000.0,0.00030636,8]
[345011140,1733930857199,-151.0,0.00030636,7]
[345011141,1733930857226,-151.0,0.00030636,7]
[345011142,1733930857248,-151.0,0.00030636,7]
[345011143,1733930857270,-151.0,0.00030636,7]
[345011144,1733930857292,-151.0,0.00030636,7]
[345011145,1733930857313,-198.948923,0.00030636,7]
[345011146,1733930857334,-151.0,0.00030636,7]
[345011147,1733930857355,-151.0,0.00030636,7]
[345011148,1733930857376,-151.0,0.00030636,7]
[345011149,1733930857398,-151.0,0.00030636,7]
[345011150,1733930857419,-151.0,0.00030636,7]
[345011151,1733930857444,-151.0,0.00030636,7]
[345011152,1733930857468,-207.207786,0.00030636,7]
[345011153,1733930857496,-160.0,0.00030637,5]
[345011154,1733930857519,-151.0,0.00030637,7]
[345011155,1733930857542,-500.0,0.00030638,11]
[345011156,1733930857563,-500.0,0.00030638,11]
[345011157,1733930857585,-151.0,0.00030643,7]
[345011158,1733930857609,-179.53039,0.00030648,7]
[345011159,1733930857631,-179.53039,0.00030648,7]
[345011160,1733930857655,-179.53039,0.00030648,7]
[345011161,1733930857678,-179.53039,0.00030648,7]
[345011162,1733930857701,-179.53039,0.00030648,7]
[345011163,1733930857726,-179.53039,0.00030648,7]
[345011164,1733930857747,-179.53039,0.00030648,7]
[345011165,1733930857769,-179.53039,0.00030648,7]
[345011166,1733930857791,-179.53039,0.00030648,7]
[345011167,1733930857813,-179.53039,0.00030648,7]
[345011168,1733930857835,-179.53039,0.00030648,7]
[345011169,1733930857856,-179.53039,0.00030648,7]
[345011170,1733930857878,-179.53039,0.00030648,7]
[345011171,1733930857900,-179.53039,0.00030648,7]
[345011172,1733930857921,-179.53039,0.00030648,7]
[345011173,1733930857943,-179.53039,0.00030648,7]
[345011174,1733930857970,-179.53039,0.00030648,7]
[345011175,1733930857995,-179.53039,0.00030648,7]
[345011176,1733930858019,-179.53039,0.00030648,7]
[345011177,1733930858041,-179.530398,0.00030648,7]
[345011178,1733930858063,-500.0,0.00030662,5]
[345011179,1733930858083,-319.92,0.00030662,5]
[345011180,1733930858105,-500.0,0.00030662,5]
[345011181,1733930858127,-500.0,0.00030662,5]
[345011182,1733930858149,-500.0,0.00030673,5]
[345011183,1733930858171,-500.0,0.00030673,5]
[345011184,1733930858192,-503.27171946,0.00030673,5]
[345011185,1733930858216,-226.00644705,0.00030685,7]
[345011186,1733930858238,-500.0,0.00030685,7]
[345011187,1733930858260,-819.30287269,0.00030685,7]
[345011188,1733930858281,-150.15,0.00030685,7]
[345011189,1733930858302,-688.92699401,0.0003073,2]
[345011190,1733930858324,-155.00030409,0.00030762,2]
[345011191,1733930858345,-1260.60423201,0.000308,5]
[345011192,1733930858366,-5000.0,0.000309,10]
[345011193,1733930858387,-10334.8081084,0.00030953,2]
[345011194,1733930858413,-500.0,0.00030959,7]
[345011195,1733930858440,-260.43571308,0.00030959,7]
[345011196,1733930858462,-299.01028007,0.0003099,2]
[345011197,1733930858487,-1003.6385,0.00031,2]
[345011198,1733930858508,-500.0,0.00031,120]
[345011199,1733930858531,-15419.34029212,0.00031,10]
[345011200,1733930858554,-1000.0,0.00031,120]
[345011201,1733930858575,-10334.80810842,0.00031128,2]
[345011202,1733930858596,-475.66197749,0.000312,30]
[345011203,1733930858617,-1000.0,0.00031221,5]
[345011204,1733930858639,-1000.0,0.00031221,5]
[345011205,1733930858661,-972.99702215,0.00031233,7]
[345011206,1733930858684,-420.0,0.00031368,2]
[345011207,1733930858706,-300.0,0.000315,15]
[345011208,1733930858736,-1000.0,0.00031506,116]
[345011209,1733930858757,-1000.0,0.00031506,116]
[345011210,1733930858780,-1000.0,0.00031506,116]
[345011211,1733930858803,-1000.0,0.00031506,116]
[345011212,1733930858826,-1000.0,0.00031506,116]
[345011213,1733930858850,-1000.0,0.00031506,116]
[345011214,1733930858874,-1000.0,0.00031506,116]
[345011215,1733930858897,-1000.0,0.00031506,116]
[345011216,1733930858920,-1000.0,0.00031506,116]
[345011217,1733930858944,-1000.0,0.00031506,116]
[345011218,1733930858971,-1000.0,0.00031506,116]
[345011219,1733930858994,-1000.0,0.00031506,116]
[345011220,1733930859017,-1000.0,0.00031506,116]
[345011221,1733930859041,-1000.0,0.00031506,116]
[345011222,1733930859065,-1000.0,0.00031506,116]
[345011223,1733930859089,-1000.0,0.00031506,116]
[345011224,1733930859114,-1000.0,0.00031506,116]
[345011225,1733930859137,-295.6949526,0.00031506,116]
[345011226,1733930859159,-500.0,0.00031506,7]
[345011227,1733930859182,-500.0,0.00031506,7]
[345011228,1733930859205,-500.0,0.00031506,7]
[345011229,1733930859231,-500.0,0.00031506,7]
[345011230,1733930859254,-500.0,0.00031506,7]
[345011231,1733930859276,-500.0,0.00031506,7]
[345011232,1733930859300,-490.46397207,0.00031506,7]
[345011233,1733930859323,-3000.0,0.00031506,30]
[345011234,1733930859346,-3000.0,0.00031506,30]
[345011235,1733930859370,-3000.0,0.00031506,30]
[345011236,1733930859499,-3000.0,0.00031506,30]
[345011237,1733930859523,-3000.0,0.00031506,30]
[345011238,1733930859545,-3000.0,0.00031506,30]
[345011239,1733930859566,-3000.0,0.00031506,30]
[345011240,1733930859594,-3000.0,0.00031506,30]
[345011241,1733930859616,-3000.0,0.00031506,30]
[345011242,1733930859638,-3000.0,0.00031506,30]
[345011243,1733930859659,-3000.0,0.00031506,30]
[345011244,1733930859680,-3000.0,0.00031506,30]
[345011245,1733930859701,-3000.0,0.00031506,30]
[345011246,1733930859727,-3000.0,0.00031506,30]
[345011247,1733930859749,-3000.0,0.00031506,30]
[345011248,1733930859771,-3000.0,0.00031506,30]
[345011249,1733930859795,-3000.0,0.00031506,30]
[345011250,1733930859817,-3000.0,0.00031506,30]
[345011251,1733930859838,-3000.0,0.00031506,30]
[345011252,1733930859860,-3000.0,0.00031506,30]
[345011253,1733930859882,-3000.0,0.00031506,30]
[345011254,1733930859903,-1268.55694239,0.00031506,30]
[345011255,1733930859924,-155.87529976,0.00031531,2]
[345011256,1733930859945,-155.32283298,0.00031572,2]
[345011257,1733930859969,-16146.9948096,0.000316,2]
[345011258,1733930859991,-500.0,0.000316,36]
[345011259,1733930860014,-400002.097178,0.000318,2]
[345011260,1733930860038,-500.0,0.00031816,11]
[345011261,1733930860060,-696.176,0.0003183,120]
[345011262,1733930860081,-150.0,0.00031864,2]
[345011263,1733930860100,-5000.0,0.000319,10]
[345011264,1733930860118,-144311.85634633,0.000319,2]
[345011270,1733930904339,262.6059737,0.00021,2]
[345011271,1733930911748,274.71725115,0.0001,2]
[345011272,1733930915654,10309.0046616,0.00021,2]
[345011273,1733930915874,236.66651265,0.00021,2]
[345011274,1733930917400,59828.33762209,0.00020377,2]
[345011275,1733930917810,1757.31273839,0.00011,2]
[345011276,1733930918962,1119.10490971,0.0001999,2]
[345011343,1733931038196,-300.0,0.00024499,2]
[345011345,1733931038206,-300.0,0.00024499,2]
[345011347,1733931038216,-22345.11823741,0.000245,2]
[345011349,1733931038226,-9020.31746675,0.0002499,5]
[345011350,1733931038237,-18913.50000009,0.0002499,5]
[345011352,1733931038249,-5839.5,0.0002499,5]
[345011354,1733931038261,-1356.615,0.0002499,5]
[345011423,1733931040906,-1606.81903467,0.0002499,5]
[345011424,1733931040918,-37850.0,0.0002499,5]
[345011425,1733931041043,-427.63664462,0.0002499,5]
[345011426,1733931041055,-6986.499,0.0002499,5]
[345011490,1733931043196,-1326.0,0.0002499,5]
[345011495,1733931043235,-15588.78189909,0.0002499,5]
[345011501,1733931043277,-12800.98592874,0.0002499,5]
[345011503,1733931043287,-500.0,0.00025999,2]
[345011505,1733931043297,-385.99091187,0.00025999,2]
[345011507,1733931043307,-7900.87351097,0.00026,30]
[345011509,1733931043317,-660.0,0.00026384,2]
[345011511,1733931043327,-8828.03201861,0.000265,2]
[345011513,1733931043337,-420.0,0.00026554,2]
[345011515,1733931043347,-159.16683005,0.00026567,2]
[345011517,1733931043356,-420.0,0.00026949,2]
[345011519,1733931043365,-155.2083415,0.00027896,2]
[345011521,1733931043375,-30616.33555269,0.0002799,2]
[345011523,1733931043385,-151.0,0.0002803,2]
[345011525,1733931043395,-343.52658002,0.000282,2]
[345011527,1733931043404,-587.0,0.00028782,2]
[345011529,1733931043414,-7238.47022682,0.00028878,2]
[345011531,1733931043424,-500.0,0.00028973,5]
[345011533,1733931043437,-471.28734182,0.00028999,2]
[345011535,1733931043450,-1000.0,0.00029,29]
[345011537,1733931043462,-864.3189325,0.00029,2]
[345011540,1733931043473,-141207.07582302,0.00029,14]
[345011542,1733931043483,-1789.65330127,0.00029,2]
[345011545,1733931043495,-2860.61130903,0.00029,2]
[345011548,1733931043505,-1850.36100275,0.00029,2]
[345011552,1733931043514,-200.0,0.00029,120]
[345011554,1733931043523,-173.36736,0.00029083,2]
[345011556,1733931043538,-270881.32996642,0.000291,2]
[345011558,1733931043546,-150.0,0.00029204,2]
[345011560,1733931043556,-155.01041708,0.0002929,2]
[345011562,1733931043566,-194196.41147637,0.000293,4]
[345011564,1733931043576,-1850.36100275,0.00029382,2]
[345011566,1733931043585,-1000.0,0.00029521,5]
[345011568,1733931043595,-823.88,0.000296,120]
[345011570,1733931043605,-587.0,0.00029644,2]
[345011572,1733931043617,-501.06509407,0.00029732,2]
[345011575,1733931043627,-3003.2,0.0002975,3]
[345011577,1733931043637,-1850.36100275,0.00029764,2]
[345011579,1733931043647,-500.0,0.00029781,2]
[345011581,1733931043657,-92585.7877467,0.000298,7]
[345011583,1733931043666,-500.0,0.00029802,2]
[345011585,1733931043676,-500.0,0.00029863,7]
[345011587,1733931043693,-500.0,0.00029863,7]
[345011589,1733931043705,-500.0,0.00029863,7]
[345011591,1733931043714,-500.0,0.00029863,7]
[345011593,1733931043723,-500.0,0.00029863,7]
[345011595,1733931043734,-500.0,0.00029863,7]
[345011597,1733931043744,-500.0,0.00029863,7]
[345011599,1733931043753,-500.0,0.00029863,7]
[345011601,1733931043762,-500.0,0.00029863,7]
[345011603,1733931043772,-477.91929343,0.00029863,7]
[345011605,1733931043781,-500.0,0.00029863,7]
[345011607,1733931043790,-506.30175894,0.00029863,7]
[345011609,1733931043801,-500.0,0.00029863,7]
[345011610,1733931043810,-500.0,0.00029872,2]
[345011612,1733931043819,-500.0,0.00029881,2]
[345011614,1733931043828,-500.0,0.00029893,2]
[345011616,1733931043838,-628.12,0.000299,2]
[345011618,1733931043847,-500.0,0.00029925,2]
[345011620,1733931043857,-249.21139398,0.0003,2]
[345011622,1733931043867,-1000.0,0.0003,30]
[345011625,1733931043877,-1009.16718529,0.0003,30]
[345011626,1733931043886,-176.9415,0.0003,2]
[345011629,1733931043896,-20848.43020773,0.0003,7]
[345011631,1733931043906,-300.0,0.0003,14]
[345011633,1733931043916,-2500.0,0.0003003,3]
[345011635,1733931043925,-39859.000002,0.000301,7]
[345011637,1733931043942,-1850.36100275,0.00030146,2]
[345011638,1733931043953,-500.0,0.0003015,2]
[345011640,1733931043962,-500.0,0.0003015,2]
[345011643,1733931043972,-500.0,0.00030202,2]
[345011645,1733931043981,-500.0,0.00030225,2]
[345011647,1733931043993,-500.0,0.00030228,2]
[345011649,1733931044003,-500.0,0.00030291,2]
[345011650,1733931044012,-500.0,0.00030331,2]
[345011652,1733931044022,-500.0,0.00030367,2]
[345011655,1733931044032,-390.29396771,0.000304,7]
[345011656,1733931044041,-390.29396771,0.000304,7]
[345011659,1733931044051,-390.29396771,0.000304,7]
[345011660,1733931044060,-390.29396771,0.000304,7]
[345011663,1733931044070,-390.29396771,0.000304,7]
[345011664,1733931044079,-390.29396771,0.000304,7]
[345011666,1733931044089,-390.29396771,0.000304,7]
[345011668,1733931044098,-390.29396771,0.000304,7]
[345011671,1733931044108,-390.29396771,0.000304,7]
[345011673,1733931044118,-390.29396771,0.000304,7]
[345011674,1733931044128,-390.29396771,0.000304,7]
[345011676,1733931044137,-390.29396771,0.000304,7]
[345011678,1733931044146,-390.29396771,0.000304,7]
[345011680,1733931044156,-390.29396771,0.000304,7]
[345011682,1733931044165,-390.29396771,0.000304,7]
[345011684,1733931044174,-390.29396771,0.000304,7]
[345011686,1733931044189,-390.29396771,0.000304,7]
[345011688,1733931044199,-390.29396771,0.000304,7]
[345011691,1733931044209,-390.29396771,0.000304,7]
[345011693,1733931044219,-390.29,0.000304,7]
[345011695,1733931044229,-585.44095157,0.000304,7]
[345011697,1733931044239,-585.44095157,0.000304,7]
[345011699,1733931044248,-585.44095157,0.000304,7]
[345011700,1733931044257,-585.44095157,0.000304,7]
[345011702,1733931044266,-585.44095157,0.000304,7]
[345011705,1733931044276,-585.44095157,0.000304,7]
[345011707,1733931044285,-585.44095157,0.000304,7]
[345011709,1733931044295,-585.44095157,0.000304,7]
[345011711,1733931044304,-585.44095157,0.000304,7]
[345011713,1733931044313,-585.44095157,0.000304,7]
[345011715,1733931044323,-585.44095157,0.000304,7]
[345011717,1733931044332,-585.44095157,0.000304,7]
[345011719,1733931044342,-585.44095157,0.000304,7]
[345011721,1733931044351,-585.44095157,0.000304,7]
[345011723,1733931044361,-585.44095157,0.000304,7]
[345011725,1733931044370,-585.44095157,0.000304,7]
[345011727,1733931044380,-585.44095157,0.000304,7]
[345011729,1733931044389,-585.44095157,0.000304,7]
[345011731,1733931044400,-585.44095157,0.000304,7]
[345011733,1733931044410,-213.0662331,0.000304,7]
[345011736,1733931044419,-213.0662331,0.000304,7]
[345011738,1733931044429,-213.0662331,0.000304,7]
[345011740,1733931044445,-213.0662331,0.000304,7]
[345011741,1733931044458,-213.0662331,0.000304,7]
[345011756,1733931044589,-213.0662331,0.000304,7]
[345011759,1733931044603,-213.0662331,0.000304,7]
[345011761,1733931044614,-213.0662331,0.000304,7]
[345011763,1733931044624,-213.0662331,0.000304,7]
[345011765,1733931044634,-213.0662331,0.000304,7]
[345011767,1733931044644,-213.0662331,0.000304,7]
[345011769,1733931044654,-213.0662331,0.000304,7]
[345011771,1733931044663,-213.0662331,0.000304,7]
[345011773,1733931044672,-213.0662331,0.000304,7]
[345011775,1733931044682,-213.0662331,0.000304,7]
[345011777,1733931044697,-213.0662331,0.000304,7]
[345011779,1733931044707,-213.0662331,0.000304,7]
[345011781,1733931044716,-213.0662331,0.000304,7]
[345011783,1733931044726,-213.0662331,0.000304,7]
[345011785,1733931044735,-213.06,0.000304,7]
[345011787,1733931044744,-319.59934966,0.000304,7]
[345011789,1733931044753,-319.59934966,0.000304,7]
[345011791,1733931044762,-319.59934966,0.000304,7]
[345011793,1733931044771,-319.59934966,0.000304,7]
[345011795,1733931044781,-319.59934966,0.000304,7]
[345011797,1733931044791,-319.59934966,0.000304,7]
[345011799,1733931044800,-319.59934966,0.000304,7]
[345011801,1733931044810,-319.59934966,0.000304,7]
[345011803,1733931044820,-319.59934966,0.000304,7]
[345011805,1733931044829,-319.59934966,0.000304,7]
[345011807,1733931044838,-319.59934966,0.000304,7]
[345011809,1733931044848,-319.59934966,0.000304,7]
[345011811,1733931044858,-319.59934966,0.000304,7]
[345011813,1733931044868,-319.59934966,0.000304,7]
[345011815,1733931044878,-319.59934966,0.000304,7]
[345011818,1733931044888,-319.59934966,0.000304,7]
[345011819,1733931044898,-319.59934966,0.000304,7]
[345011821,1733931044907,-319.59934966,0.000304,7]
[345011823,1733931044916,-319.59934966,0.000304,7]
[345011825,1733931044926,-500.0,0.00030451,2]
[345011826,1733931044940,-150.371,0.0003048,7]
[345011828,1733931044950,-2011.06033765,0.000305,7]
[345011830,1733931044960,-40754.34264337,0.000305,15]
[345011832,1733931044969,-585.44,0.00030528,7]
[345011834,1733931044979,-319.59,0.00030528,7]
[345011836,1733931044988,-1850.36100275,0.00030528,2]
[345011838,1733931044998,-666.0,0.00030536,2]
[345011840,1733931045007,-9705.15108145,0.000306,10]
[345011842,1733931045016,-151.0,0.000306,19]
[345011844,1733931045025,-151.0,0.000306,12]
[345011846,1733931045035,-151.0,0.000306,15]
[345011848,1733931045045,-151.0,0.000306,17]
[345011850,1733931045054,-151.0,0.000306,12]
[345011852,1733931045063,-151.0,0.000306,10]
[345011853,1733931045073,-35242.01252514,0.00030627,2]
[345011854,1733931045082,-297.34165773,0.00030627,2]
[345011856,1733931045092,-940952.33527454,0.00030628,10]
[345011858,1733931045102,-500.0,0.00030628,2]
[345011860,1733931045111,-710687.32465455,0.00030628,10]
[345011862,1733931045121,-136553.03413169,0.00030628,2]
[345011864,1733931045131,-13733.17256394,0.00030628,2]
[345011866,1733931045140,-4936.45266139,0.00030628,2]
[345011868,1733931045150,-1020344.34336743,0.00030628,10]
[345011869,1733931045159,-2655.93393119,0.00030628,15]
[345011871,1733931045168,-382505.60178398,0.00030628,10]
[345011874,1733931045182,-114270.0000031,0.00030628,10]
[345011876,1733931045198,-2137549.09661912,0.00030628,10]
[345011878,1733931045209,-266.74607202,0.00030628,10]
[345011880,1733931045222,-7819.6006,0.00030628,10]
[345011882,1733931045233,-442.71028171,0.00030628,10]
[345011885,1733931045245,-81330.08228633,0.00030628,10]
[345011887,1733931045260,-395.70662297,0.00030628,10]
[345011931,1733931046027,-500.0,0.00029863,7]
[345011932,1733931046038,-500.0,0.00029863,7]
[345011933,1733931046048,-500.0,0.00029863,7]
[345011934,1733931046058,-547600.33774939,0.00030628,10]
[345011945,1733931046278,-1005.0,0.00030628,10]
[345011947,1733931046289,-5009.38,0.00030628,10]
[345011948,1733931046301,-15032.9829876,0.00030628,10]
[345011949,1733931046314,-7555.39999996,0.00030628,10]
[345011950,1733931046327,-6294.32954213,0.00030628,10]
[345012243,1733931104136,207.896783,0.00013973,2]
[345012244,1733931104367,207.896783,0.00020447,2]
[345012258,1733931435308,2000.0,0.00023,5]
[345012402,1733932232348,-1131.47665408,0.00024434,2]
[345012405,1733932232358,-236.83172456,0.00025182,2]
[345012406,1733932232367,-788.88549845,0.00025798,2]
[345012408,1733932232377,-172.0917893,0.00025838,2]
[345012409,1733932232386,-224.28224923,0.00025898,2]
[345012410,1733932232396,-184.7619865,0.00026168,2]
[345012411,1733932232405,-396.695902,0.00026168,2]
[345012413,1733932232415,-250.0,0.00026226,2]
[345012415,1733932232424,-867.9263791,0.00026257,2]
[345012417,1733932232434,-660.0,0.00026384,2]
[345012419,1733932232443,-280.7778225,0.0002644,2]
[345012421,1733932232453,-159.09158623,0.00026441,2]
[345012423,1733932232463,-207.896783,0.00026921,2]
[345012425,1733932232472,-223.470473,0.00027137,2]
[345012427,1733932232482,-300.0,0.00027396,2]
[345012429,1733932232492,-300.0,0.00027396,2]
[345012431,1733932232501,-10971.3444857,0.00027397,2]
[345012433,1733932232512,-172.87183682,0.00027397,2]
[345012435,1733932232522,-155.20457931,0.00027763,2]
[345012437,1733932232532,-160.0,0.00027945,3]
[345012439,1733932232541,-223.470473,0.00028142,2]
[345012441,1733932232551,-172.389,0.00028735,20]
[345012443,1733932232560,-24900.0,0.00028736,2]
[345012445,1733932232570,-444.71615608,0.00029041,120]
[345012447,1733932232579,-223.470473,0.00029146,2]
[345012449,1733932232588,-155.01022897,0.00029151,2]
[345012451,1733932232598,-160.0,0.00029198,4]
[345012454,1733932232608,-150.682,0.00029206,2]
[345012456,1733932232617,-533.0,0.00029206,2]
[345012458,1733932232627,-2161.0,0.00029206,2]
[345012460,1733932232636,-2370.0,0.00029206,2]
[345012462,1733932232646,-156.564,0.00029206,2]
[345012463,1733932232655,-533.91271525,0.00029473,5]
[345012465,1733932232664,-500.0,0.00029473,5]
[345012467,1733932232674,-500.0,0.00029473,5]
[345012469,1733932232683,-500.0,0.00029499,2]
[345012472,1733932232692,-500.0,0.00029499,2]
[345012473,1733932232702,-638.14669579,0.00029499,2]
[345012475,1733932232711,-500.0,0.00029499,2]
[345012477,1733932232720,-500.0,0.00029499,2]
[345012479,1733932232729,-500.0,0.00029499,2]
[345012481,1733932232738,-500.0,0.00029499,2]
[345012483,1733932232747,-500.0,0.00029499,2]
[345012485,1733932232758,-500.0,0.00029499,2]
[345012487,1733932232768,-500.0,0.00029499,2]
[345012489,1733932232777,-320.92276686,0.00029499,2]
[345012491,1733932232790,-500.0,0.00029499,2]
[345012493,1733932232801,-500.0,0.00029499,2]
[345012495,1733932232811,-500.0,0.00029499,2]
[345012497,1733932232820,-227.85337437,0.00029499,2]
[345012499,1733932232830,-500.0,0.00029499,2]
[345012501,1733932232840,-500.0,0.00029499,2]
[345012503,1733932232849,-500.0,0.00029499,2]
[345012505,1733932232859,-500.0,0.00029499,2]
[345012507,1733932232869,-500.0,0.00029499,2]
[345012509,1733932232879,-500.0,0.00029499,2]
[345012511,1733932232888,-500.0,0.00029499,2]
[345012513,1733932232897,-342.36350768,0.00029499,2]
[345012515,1733932232906,-500.0,0.00029499,2]
[345012517,1733932232915,-393.09,0.00029499,2]
[345012519,1733932232925,-500.0,0.00029499,7]
[345012521,1733932232934,-224794.34148692,0.000295,10]
[345012523,1733932232943,-420.0,0.00029606,2]
[345012525,1733932232953,-500.0,0.00029636,7]
[345012527,1733932232963,-2437.97972355,0.00029763,2]
[345012530,1733932232973,-503.18691399,0.00029773,7]
[345012532,1733932232982,-501.98098709,0.00029863,7]
[345012534,1733932232991,-500.0,0.00029863,7]
[345012535,1733932233000,-232.27728945,0.00029863,7]
[345012538,1733932233013,-502.78557684,0.00029863,7]
[345012540,1733932233023,-500.0,0.00029863,7]
[345012542,1733932233032,-500.0,0.00029863,7]
[345012544,1733932233041,-500.0,0.00029863,7]
[345012546,1733932233051,-502.95651006,0.00029863,7]
[345012548,1733932233060,-500.0,0.00029863,7]
[345012549,1733932233070,-424.63758225,0.00029863,7]
[345012551,1733932233079,-500.0,0.00029863,7]
[345012553,1733932233089,-500.0,0.00029863,7]
[345012554,1733932233097,-500.0,0.00029863,7]
[345012556,1733932233106,-500.0,0.00029863,7]
[345012558,1733932233115,-256.6484468,0.00029863,7]
[345012559,1733932233125,-500.0,0.00029863,7]
[345012560,1733932233134,-500.0,0.00029863,7]
[345012561,1733932233144,-500.0,0.00029863,7]
[345012562,1733932233153,-509.40577235,0.00029863,7]
[345012563,1733932233162,-500.0,0.00029863,7]
[345012565,1733932233171,-500.0,0.00029863,7]
[345012567,1733932233180,-500.0,0.00029863,7]
[345012569,1733932233189,-500.0,0.00029863,7]
[345012571,1733932233199,-342.2841208,0.00029863,7]
[345012573,1733932233208,-500.0,0.00029863,2]
[345012575,1733932233218,-306.64882751,0.00029863,2]
[345012577,1733932233228,-500.0,0.00029863,7]
[345012578,1733932233237,-500.0,0.00029863,7]
[345012580,1733932233247,-500.0,0.00029863,7]
[345012582,1733932233256,-552.6801115,0.00029863,7]
[345012583,1733932233266,-500.0,0.00029863,7]
[345012584,1733932233275,-500.0,0.00029863,7]
[345012585,1733932233284,-500.0,0.00029863,7]
[345012586,1733932233294,-213.19944306,0.00029863,7]
[345012587,1733932233303,-500.0,0.00029863,7]
[345012588,1733932233312,-500.0,0.00029863,7]
[345012589,1733932233322,-500.0,0.00029863,7]
[345012590,1733932233331,-500.0,0.00029863,7]
[345012591,1733932233340,-500.0,0.00029863,7]
[345012592,1733932233348,-509.86346958,0.00029863,7]
[345012593,1733932233355,-500.0,0.00029863,7]
[345012594,1733932233362,-565.72,0.00029863,7]
[345012595,1733932233371,-564.53260462,0.00029863,7]
[345012596,1733932233378,-504.16048891,0.00029863,7]
[345012597,1733932233386,-500.0,0.00029863,7]
[345012598,1733932233394,-500.0,0.00029863,7]
[345012599,1733932233402,-500.0,0.00029863,7]
[345012600,1733932233409,-500.0,0.00029863,7]
[345012601,1733932233416,-500.0,0.00029863,7]
[345012602,1733932233423,-500.0,0.00029863,7]
[345012603,1733932233433,-500.0,0.00029863,7]
[345012604,1733932233440,-500.0,0.00029863,7]
[345012605,1733932233447,-506.0839576,0.00029863,7]